[Event "Early-Titled-Tuesday-Blitz-April-02-2024"]
[Site "Chess.com"]
[Date "2024.04.02"]
[Round "8"]
[White "stollenmonster"]
[Black "AjedrezenMadrid"]
[Result "1-0"]
[WhiteElo "2892"]
[BlackElo "2566"]
[TimeControl "180+1"]
[EndTime "9:28:46 PDT"]
[Termination "stollenmonster won by checkmate"]

1. e4 {[%clk 0:03:00.9]} 1... c5 {[%clk 0:02:59.1]} 2. Nf3 {[%clk 0:03:00.7]}
2... e6 {[%clk 0:02:59.5]} 3. Be2 {[%clk 0:03:00.3]} 3... Nc6 {[%clk 0:02:59.4]}
4. c4 {[%clk 0:03:00.6]} 4... g5 {[%clk 0:02:58.6]} 5. h3 {[%clk 0:03:00.3]}
5... h5 {[%clk 0:02:58.3]} 6. d4 {[%clk 0:02:56.7]} 6... cxd4 {[%clk 0:02:56]}
7. Nxd4 {[%clk 0:02:57.6]} 7... a6 {[%clk 0:02:47.5]} 8. Nc3 {[%clk 0:02:56.1]}
8... Bc5 {[%clk 0:02:46]} 9. Nb3 {[%clk 0:02:52.1]} 9... Be7 {[%clk 0:02:45.8]}
10. Be3 {[%clk 0:02:50.9]} 10... Qc7 {[%clk 0:02:40.2]} 11. Qd2 {[%clk
0:02:46.5]} 11... Nf6 {[%clk 0:02:28.9]} 12. Rc1 {[%clk 0:02:41.2]} 12... d6
{[%clk 0:02:28.9]} 13. Bxg5 {[%clk 0:02:35.9]} 13... Bd7 {[%clk 0:02:28.2]} 14.
O-O {[%clk 0:02:24.4]} 14... Rg8 {[%clk 0:02:28]} 15. h4 {[%clk 0:02:24.5]}
15... Ne5 {[%clk 0:02:24.4]} 16. Qf4 {[%clk 0:02:09.7]} 16... Ng6 {[%clk
0:02:21.4]} 17. Qe3 {[%clk 0:02:06.2]} 17... Ng4 {[%clk 0:02:10.3]} 18. Bxg4
{[%clk 0:02:04.9]} 18... hxg4 {[%clk 0:02:08.6]} 19. Bxe7 {[%clk 0:01:58.4]}
19... Kxe7 {[%clk 0:02:07.7]} 20. c5 {[%clk 0:01:56.8]} 20... Nxh4 {[%clk
0:02:03.1]} 21. Rfd1 {[%clk 0:01:48.9]} 21... d5 {[%clk 0:01:47]} 22. exd5
{[%clk 0:01:42.1]} 22... Nf3+ {[%clk 0:01:31.9]} 23. gxf3 {[%clk 0:01:10.8]}
23... gxf3+ {[%clk 0:01:32]} 24. Kf1 {[%clk 0:01:11.2]} 24... Qh2 {[%clk
0:01:32.9]} 25. Qxf3 {[%clk 0:01:01.7]} 25... e5 {[%clk 0:01:31.2]} 26. Ke1
{[%clk 0:00:52.1]} 26... Rg1+ {[%clk 0:01:26.8]} 27. Kd2 {[%clk 0:00:51.3]}
27... Rg2 {[%clk 0:01:25.6]} 28. d6+ {[%clk 0:00:49.1]} 28... Kf8 {[%clk
0:01:19.2]} 29. Ne4 {[%clk 0:00:49.4]} 29... Bg4 {[%clk 0:01:09.3]} 30. Qe3
{[%clk 0:00:47]} 30... f5 {[%clk 0:01:05.5]} 31. Rh1 {[%clk 0:00:43.5]} 31... f4
{[%clk 0:01:05]} 32. Qe2 {[%clk 0:00:31.6]} 32... Bxe2 {[%clk 0:01:02.5]} 33.
Rxh2 {[%clk 0:00:31.4]} 33... Rxh2 {[%clk 0:01:01.7]} 34. Kxe2 {[%clk 0:00:32]}
34... Kf7 {[%clk 0:01:02.1]} 35. Na5 {[%clk 0:00:29.2]} 35... Ke6 {[%clk
0:01:00.4]} 36. Nxb7 {[%clk 0:00:27.9]} 36... Kf5 {[%clk 0:00:58.7]} 37. Rc4
{[%clk 0:00:20.2]} 37... Rg8 {[%clk 0:00:52.4]} 38. d7 {[%clk 0:00:19.9]} 38...
Kg4 {[%clk 0:00:31.7]} 39. d8=Q {[%clk 0:00:18]} 39... Rxd8 {[%clk 0:00:31.7]}
40. Nxd8 {[%clk 0:00:18.9]} 40... f3+ {[%clk 0:00:32.1]} 41. Kd2 {[%clk
0:00:15.7]} 41... Kh3 {[%clk 0:00:30.7]} 42. c6 {[%clk 0:00:15.4]} 42... Kg2
{[%clk 0:00:28.3]} 43. c7 {[%clk 0:00:15.8]} 43... Rh8 {[%clk 0:00:21.8]} 44.
c8=Q {[%clk 0:00:15.5]} 44... Rxd8+ {[%clk 0:00:22.7]} 45. Qxd8 {[%clk
0:00:15.5]} 45... Kf1 {[%clk 0:00:23]} 46. Qg5 {[%clk 0:00:14.4]} 46... a5
{[%clk 0:00:23]} 47. Rc1# {[%clk 0:00:15.3]} 1-0

[Event "Early-Titled-Tuesday-Blitz-April-02-2024"]
[Site "Chess.com"]
[Date "2024.04.02"]
[Round "8"]
[White "Licancabur"]
[Black "chess_sharparchitect"]
[Result "1-0"]
[WhiteElo "2470"]
[BlackElo "2273"]
[TimeControl "180+1"]
[EndTime "9:28:46 PDT"]
[Termination "Licancabur won on time"]

1. Nf3 {[%clk 0:03:00.9]} 1... d5 {[%clk 0:02:59.2]} 2. b3 {[%clk 0:02:59.9]}
2... Nf6 {[%clk 0:02:54.9]} 3. Bb2 {[%clk 0:03:00.4]} 3... e6 {[%clk 0:02:54]}
4. e3 {[%clk 0:03:00.3]} 4... Bd6 {[%clk 0:02:53.1]} 5. d4 {[%clk 0:02:59.6]}
5... c5 {[%clk 0:02:50.9]} 6. Nbd2 {[%clk 0:02:58.1]} 6... O-O {[%clk
0:02:48.2]} 7. Bd3 {[%clk 0:02:57.6]} 7... Nbd7 {[%clk 0:02:37.5]} 8. Ne5 {[%clk
0:02:53]} 8... Qc7 {[%clk 0:02:27.7]} 9. f4 {[%clk 0:02:49.4]} 9... b6 {[%clk
0:02:12.2]} 10. O-O {[%clk 0:02:47.2]} 10... Re8 {[%clk 0:02:03.4]} 11. Rf3
{[%clk 0:02:41.4]} 11... Nf8 {[%clk 0:02:02.7]} 12. Rh3 {[%clk 0:02:34]} 12...
g6 {[%clk 0:02:01.1]} 13. Qe1 {[%clk 0:02:15]} 13... a5 {[%clk 0:01:56.6]} 14.
Qh4 {[%clk 0:02:13.4]} 14... Be7 {[%clk 0:01:56.8]} 15. Qh6 {[%clk 0:02:08.5]}
15... cxd4 {[%clk 0:01:44.9]} 16. Bxd4 {[%clk 0:01:59.3]} 16... Bc5 {[%clk
0:01:20.7]} 17. Ndf3 {[%clk 0:01:54.3]} 17... Bxd4 {[%clk 0:01:20.3]} 18. exd4
{[%clk 0:01:48.4]} 18... Ba6 {[%clk 0:01:19.8]} 19. c4 {[%clk 0:01:22.8]} 19...
dxc4 {[%clk 0:01:16.3]} 20. bxc4 {[%clk 0:01:22.9]} 20... Rad8 {[%clk
0:01:10.8]} 21. Rb1 {[%clk 0:01:18.6]} 21... Re7 {[%clk 0:01:05.4]} 22. Rg3
{[%clk 0:01:11.1]} 22... Bb7 {[%clk 0:01:01.4]} 23. Qh4 {[%clk 0:00:49.4]} 23...
Ne4 {[%clk 0:00:55.4]} 24. Ng4 {[%clk 0:00:38]} 24... Nxg3 {[%clk 0:00:45]} 25.
hxg3 {[%clk 0:00:17.6]} 25... Bxf3 {[%clk 0:00:44.7]} 26. gxf3 {[%clk
0:00:16.6]} 26... Nd7 {[%clk 0:00:24.8]} 27. Kg2 {[%clk 0:00:14.2]} 27... Rde8
{[%clk 0:00:20.4]} 28. Rh1 {[%clk 0:00:14.4]} 28... h5 {[%clk 0:00:19.6]} 29.
Nh6+ {[%clk 0:00:10]} 29... Kg7 {[%clk 0:00:18.2]} 30. Ng4 {[%clk 0:00:09]}
30... f5 {[%clk 0:00:14.1]} 31. Ne3 {[%clk 0:00:05]} 31... Nf6 {[%clk
0:00:12.1]} 32. Qg5 {[%clk 0:00:04.7]} 32... Rd7 {[%clk 0:00:08]} 33. g4 {[%clk
0:00:04.7]} 33... Rxd4 {[%clk 0:00:05.5]} 34. gxf5 {[%clk 0:00:04.6]} 34... Qxf4
{[%clk 0:00:01.1]} 35. Qxg6+ {[%clk 0:00:04.9]} 1-0

[Event "Early-Titled-Tuesday-Blitz-April-02-2024"]
[Site "Chess.com"]
[Date "2024.04.02"]
[Round "8"]
[White "agvania123"]
[Black "joselito22"]
[Result "0-1"]
[WhiteElo "2389"]
[BlackElo "2285"]
[TimeControl "180+1"]
[EndTime "9:28:46 PDT"]
[Termination "joselito22 won on time"]

1. Nc3 {[%clk 0:02:57.3]} 1... g6 {[%clk 0:02:58.6]} 2. e4 {[%clk 0:02:56.9]}
2... Bg7 {[%clk 0:02:58.6]} 3. g3 {[%clk 0:02:56.7]} 3... c5 {[%clk 0:02:58.4]}
4. Bg2 {[%clk 0:02:56.9]} 4... Nc6 {[%clk 0:02:58.4]} 5. Nge2 {[%clk 0:02:57.3]}
5... d6 {[%clk 0:02:58]} 6. O-O {[%clk 0:02:57.6]} 6... e6 {[%clk 0:02:53.5]} 7.
d3 {[%clk 0:02:57.3]} 7... Nge7 {[%clk 0:02:52.4]} 8. f4 {[%clk 0:02:57.6]} 8...
O-O {[%clk 0:02:50.1]} 9. h4 {[%clk 0:02:57]} 9... Rb8 {[%clk 0:02:47]} 10. Be3
{[%clk 0:02:54.9]} 10... Nd4 {[%clk 0:02:43.4]} 11. g4 {[%clk 0:02:16.3]} 11...
f5 {[%clk 0:02:40.8]} 12. g5 {[%clk 0:02:14.9]} 12... b5 {[%clk 0:02:36.7]} 13.
Bxd4 {[%clk 0:02:05.2]} 13... cxd4 {[%clk 0:02:33.5]} 14. Nb1 {[%clk 0:02:05.2]}
14... Bb7 {[%clk 0:02:10.4]} 15. Nd2 {[%clk 0:02:02.7]} 15... Qc7 {[%clk
0:02:08.1]} 16. Nb3 {[%clk 0:01:59.5]} 16... e5 {[%clk 0:02:00]} 17. h5 {[%clk
0:01:46.4]} 17... gxh5 {[%clk 0:01:47]} 18. Ng3 {[%clk 0:01:38.1]} 18... exf4
{[%clk 0:01:24.1]} 19. Nxh5 {[%clk 0:01:36.9]} 19... Ng6 {[%clk 0:01:17.3]} 20.
Nxf4 {[%clk 0:01:14.4]} 20... Nxf4 {[%clk 0:01:15.5]} 21. Rxf4 {[%clk
0:01:15.3]} 21... fxe4 {[%clk 0:01:15.4]} 22. Rxf8+ {[%clk 0:01:03.6]} 22...
Rxf8 {[%clk 0:01:14.5]} 23. dxe4 {[%clk 0:00:55.9]} 23... Qb6 {[%clk 0:00:31.7]}
24. Qd3 {[%clk 0:00:19.9]} 24... b4 {[%clk 0:00:24.8]} 25. Rf1 {[%clk
0:00:13.1]} 25... Rxf1+ {[%clk 0:00:15.7]} 26. Bxf1 {[%clk 0:00:12.5]} 26... a5
{[%clk 0:00:14.4]} 27. a4 {[%clk 0:00:10.4]} 27... bxa3 {[%clk 0:00:13.6]} 28.
bxa3 {[%clk 0:00:11.3]} 28... a4 {[%clk 0:00:12.9]} 29. Qc4+ {[%clk 0:00:10.7]}
29... Kf8 {[%clk 0:00:09.9]} 30. Qxa4 {[%clk 0:00:06.9]} 30... d3+ {[%clk
0:00:09.1]} 31. Kh2 {[%clk 0:00:04.4]} 31... dxc2 {[%clk 0:00:08.8]} 32. Qc4
{[%clk 0:00:02.8]} 32... Qf2+ {[%clk 0:00:07.6]} 33. Kh3 {[%clk 0:00:03.4]}
33... Ke7 {[%clk 0:00:06]} 34. Bd3 {[%clk 0:00:02.7]} 34... Kd8 {[%clk
0:00:04.9]} 35. Qxc2 {[%clk 0:00:02.5]} 35... Bc8+ {[%clk 0:00:05.1]} 0-1

[Event "Early-Titled-Tuesday-Blitz-April-02-2024"]
[Site "Chess.com"]
[Date "2024.04.02"]
[Round "8"]
[White "WiktoriaPOL"]
[Black "Joachim100x"]
[Result "0-1"]
[WhiteElo "2333"]
[BlackElo "2545"]
[TimeControl "180+1"]
[EndTime "9:28:50 PDT"]
[Termination "Joachim100x won by resignation"]

1. c4 {[%clk 0:02:58.4]} 1... e6 {[%clk 0:02:59.8]} 2. Nc3 {[%clk 0:02:58]} 2...
d5 {[%clk 0:03:00.1]} 3. cxd5 {[%clk 0:02:58.4]} 3... exd5 {[%clk 0:03:00.3]} 4.
d4 {[%clk 0:02:59.1]} 4... Nf6 {[%clk 0:03:00.5]} 5. Bg5 {[%clk 0:02:59.2]} 5...
Be7 {[%clk 0:03:00.6]} 6. e3 {[%clk 0:02:59.4]} 6... O-O {[%clk 0:03:00.8]} 7.
Bd3 {[%clk 0:03:00]} 7... c6 {[%clk 0:02:59.8]} 8. Qc2 {[%clk 0:03:00.3]} 8...
Nbd7 {[%clk 0:02:57.5]} 9. Nge2 {[%clk 0:03:00.3]} 9... h6 {[%clk 0:02:57.6]}
10. Bh4 {[%clk 0:03:00.2]} 10... Re8 {[%clk 0:02:56.9]} 11. O-O {[%clk
0:03:00.8]} 11... Ne4 {[%clk 0:02:54.8]} 12. Bxe7 {[%clk 0:02:56.7]} 12... Qxe7
{[%clk 0:02:54.7]} 13. Nxe4 {[%clk 0:02:49]} 13... dxe4 {[%clk 0:02:54.2]} 14.
Bc4 {[%clk 0:02:49.6]} 14... Nb6 {[%clk 0:02:45]} 15. Bb3 {[%clk 0:02:48.8]}
15... Be6 {[%clk 0:02:41.3]} 16. Nc3 {[%clk 0:02:46.9]} 16... Bxb3 {[%clk
0:02:40]} 17. Qxb3 {[%clk 0:02:47.8]} 17... Rad8 {[%clk 0:02:37.6]} 18. a4
{[%clk 0:02:46.7]} 18... Nd5 {[%clk 0:02:37.5]} 19. Rac1 {[%clk 0:02:41.6]}
19... Kh7 {[%clk 0:02:32]} 20. Nxd5 {[%clk 0:02:40.1]} 20... Rxd5 {[%clk
0:02:31.3]} 21. f3 {[%clk 0:02:23.1]} 21... exf3 {[%clk 0:02:24.4]} 22. Rxf3
{[%clk 0:02:24]} 22... f5 {[%clk 0:02:08.2]} 23. Rcf1 {[%clk 0:02:12.9]} 23...
g6 {[%clk 0:02:04.1]} 24. h3 {[%clk 0:01:56.5]} 24... h5 {[%clk 0:02:02.6]} 25.
Qd3 {[%clk 0:01:47.4]} 25... Qg5 {[%clk 0:01:57.9]} 26. Kh2 {[%clk 0:01:37.2]}
26... h4 {[%clk 0:01:55]} 27. Qb3 {[%clk 0:01:28]} 27... Re7 {[%clk 0:01:49.7]}
28. Qa3 {[%clk 0:01:16.5]} 28... Re6 {[%clk 0:01:09.6]} 29. g4 {[%clk
0:01:09.2]} 29... hxg3+ {[%clk 0:01:03.6]} 30. Rxg3 {[%clk 0:01:09.2]} 30... Qe7
{[%clk 0:01:02.1]} 31. Qd3 {[%clk 0:01:04.1]} 31... Re4 {[%clk 0:01:00.6]} 32.
Rfg1 {[%clk 0:01:00.6]} 32... Rd6 {[%clk 0:01:00.5]} 33. Qa3 {[%clk 0:00:56.6]}
33... Qd7 {[%clk 0:00:50.8]} 34. Qc5 {[%clk 0:00:39.1]} 34... a6 {[%clk
0:00:50.8]} 35. Qb4 {[%clk 0:00:14.8]} 35... Rde6 {[%clk 0:00:50.4]} 36. Qb3
{[%clk 0:00:10.5]} 36... Qe7 {[%clk 0:00:47.3]} 37. d5 {[%clk 0:00:04]} 37...
cxd5 {[%clk 0:00:45.8]} 38. Qxd5 {[%clk 0:00:03.9]} 38... Rxe3 {[%clk
0:00:38.8]} 39. Rxe3 {[%clk 0:00:04]} 39... Rxe3 {[%clk 0:00:38.5]} 40. Qc4
{[%clk 0:00:02.9]} 40... Qe5+ {[%clk 0:00:32.9]} 41. Kh1 {[%clk 0:00:01.9]}
41... Rxh3+ {[%clk 0:00:32.4]} 42. Kg2 {[%clk 0:00:02.5]} 42... Qh2+ {[%clk
0:00:24.7]} 43. Kf1 {[%clk 0:00:01.8]} 43... Rf3+ {[%clk 0:00:24.8]} 44. Ke1
{[%clk 0:00:01.6]} 44... Qxg1+ {[%clk 0:00:24.8]} 0-1

[Event "Early-Titled-Tuesday-Blitz-April-02-2024"]
[Site "Chess.com"]
[Date "2024.04.02"]
[Round "8"]
[White "Let_it_be_1"]
[Black "NikitaShnadrygin"]
[Result "1/2-1/2"]
[WhiteElo "2562"]
[BlackElo "2675"]
[TimeControl "180+1"]
[EndTime "9:28:53 PDT"]
[Termination "Game drawn - insufficient material"]

1. e4 {[%clk 0:02:56.6]} 1... c5 {[%clk 0:03:00]} 2. Nf3 {[%clk 0:02:55.7]} 2...
e6 {[%clk 0:03:00.4]} 3. d4 {[%clk 0:02:55.7]} 3... cxd4 {[%clk 0:03:01.3]} 4.
Nxd4 {[%clk 0:02:55.9]} 4... Nf6 {[%clk 0:03:01.9]} 5. Nc3 {[%clk 0:02:55.6]}
5... Nc6 {[%clk 0:03:02.5]} 6. Ndb5 {[%clk 0:02:55.1]} 6... Bb4 {[%clk
0:03:02.6]} 7. a3 {[%clk 0:02:54.9]} 7... Bxc3+ {[%clk 0:03:03]} 8. Nxc3 {[%clk
0:02:55.5]} 8... d5 {[%clk 0:03:03.9]} 9. exd5 {[%clk 0:02:55.7]} 9... exd5
{[%clk 0:03:04.8]} 10. Bd3 {[%clk 0:02:55.6]} 10... O-O {[%clk 0:03:05.3]} 11.
O-O {[%clk 0:02:54.6]} 11... Bg4 {[%clk 0:03:06]} 12. f3 {[%clk 0:02:53]} 12...
Bh5 {[%clk 0:03:06]} 13. Bg5 {[%clk 0:02:48.7]} 13... Qb6+ {[%clk 0:03:05.9]}
14. Kh1 {[%clk 0:02:48.7]} 14... Ne4 {[%clk 0:03:06.1]} 15. Nxe4 {[%clk
0:02:47.3]} 15... dxe4 {[%clk 0:03:06.4]} 16. Bxe4 {[%clk 0:02:47.9]} 16... Qxb2
{[%clk 0:03:06.5]} 17. Qb1 {[%clk 0:02:47.7]} 17... Qb6 {[%clk 0:03:06.5]} 18.
Qxb6 {[%clk 0:02:47.6]} 18... axb6 {[%clk 0:03:06.7]} 19. Rfb1 {[%clk
0:02:48.1]} 19... Bg6 {[%clk 0:03:06.8]} 20. Bxg6 {[%clk 0:02:47.7]} 20... hxg6
{[%clk 0:03:06.8]} 21. Rxb6 {[%clk 0:02:47.8]} 21... Na5 {[%clk 0:03:07.5]} 22.
h4 {[%clk 0:02:28.9]} 22... Rfe8 {[%clk 0:03:05.6]} 23. Rc1 {[%clk 0:02:14.6]}
23... Ra7 {[%clk 0:02:11]} 24. c4 {[%clk 0:02:02.5]} 24... Nc6 {[%clk
0:02:07.2]} 25. Rc2 {[%clk 0:01:45.1]} 25... Nd4 {[%clk 0:01:51.9]} 26. Rd2
{[%clk 0:01:33.6]} 26... Ne6 {[%clk 0:01:48.2]} 27. Rd7 {[%clk 0:01:30.8]} 27...
Rxa3 {[%clk 0:01:43.6]} 28. Rdxb7 {[%clk 0:01:20.7]} 28... f6 {[%clk 0:00:46.4]}
29. Rb8 {[%clk 0:01:18.3]} 29... Rxb8 {[%clk 0:00:41.1]} 30. Rxb8+ {[%clk
0:01:17.8]} 30... Kf7 {[%clk 0:00:41.1]} 31. Rb7+ {[%clk 0:01:14.5]} 31... Ke8
{[%clk 0:00:38.9]} 32. Bd2 {[%clk 0:01:12.4]} 32... Ra1+ {[%clk 0:00:35.8]} 33.
Kh2 {[%clk 0:01:11.7]} 33... Ra2 {[%clk 0:00:36.5]} 34. Bb4 {[%clk 0:01:11.8]}
34... Nf4 {[%clk 0:00:30.8]} 35. Re7+ {[%clk 0:00:45.7]} 35... Kd8 {[%clk
0:00:30.6]} 36. Rxg7 {[%clk 0:00:45.8]} 36... Rxg2+ {[%clk 0:00:30.5]} 37. Kh1
{[%clk 0:00:45.3]} 37... Rg3 {[%clk 0:00:17.6]} 38. Be7+ {[%clk 0:00:39.8]}
38... Ke8 {[%clk 0:00:17.4]} 39. Bxf6 {[%clk 0:00:39.3]} 39... Rxf3 {[%clk
0:00:12]} 40. Bg5 {[%clk 0:00:37.9]} 40... Kf8 {[%clk 0:00:08.9]} 41. Bh6 {[%clk
0:00:27.5]} 41... Ke8 {[%clk 0:00:09.4]} 42. c5 {[%clk 0:00:24.6]} 42... Rh3+
{[%clk 0:00:09.1]} 43. Kg1 {[%clk 0:00:23.8]} 43... Rxh4 {[%clk 0:00:09.6]} 44.
Bxf4 {[%clk 0:00:20.1]} 44... Rxf4 {[%clk 0:00:10.5]} 45. Rxg6 {[%clk
0:00:20.3]} 45... Rc4 {[%clk 0:00:10.8]} 46. c6 {[%clk 0:00:20.4]} 46... Kd8
{[%clk 0:00:10.6]} 47. Kf2 {[%clk 0:00:20.9]} 47... Kc7 {[%clk 0:00:10.9]} 48.
Ke3 {[%clk 0:00:21.4]} 48... Rxc6 {[%clk 0:00:11.8]} 49. Rxc6+ {[%clk
0:00:21.1]} 49... Kxc6 {[%clk 0:00:12.7]} 1/2-1/2

[Event "Early-Titled-Tuesday-Blitz-April-02-2024"]
[Site "Chess.com"]
[Date "2024.04.02"]
[Round "8"]
[White "only_strong_moves"]
[Black "Msb2"]
[Result "0-1"]
[WhiteElo "2739"]
[BlackElo "3020"]
[TimeControl "180+1"]
[EndTime "9:28:54 PDT"]
[Termination "Msb2 won by resignation"]

1. Nc3 {[%clk 0:03:00.9]} 1... d5 {[%clk 0:03:00.2]} 2. e4 {[%clk 0:03:01]} 2...
e6 {[%clk 0:03:00.9]} 3. d4 {[%clk 0:02:59.1]} 3... Nf6 {[%clk 0:03:01.2]} 4. e5
{[%clk 0:02:58.9]} 4... Nfd7 {[%clk 0:03:01.9]} 5. Nce2 {[%clk 0:02:58.7]} 5...
c5 {[%clk 0:03:02.3]} 6. c3 {[%clk 0:02:59.1]} 6... Nc6 {[%clk 0:03:03]} 7. f4
{[%clk 0:02:57.8]} 7... Be7 {[%clk 0:03:03.6]} 8. Nf3 {[%clk 0:02:57.7]} 8...
O-O {[%clk 0:03:04.2]} 9. g3 {[%clk 0:02:57.5]} 9... b5 {[%clk 0:02:56.7]} 10.
Bg2 {[%clk 0:02:57.5]} 10... a5 {[%clk 0:02:56.5]} 11. O-O {[%clk 0:02:57.4]}
11... b4 {[%clk 0:02:57.1]} 12. g4 {[%clk 0:02:49.6]} 12... f6 {[%clk
0:02:54.3]} 13. f5 {[%clk 0:02:41.3]} 13... fxe5 {[%clk 0:02:40.1]} 14. fxe6
{[%clk 0:02:41.2]} 14... Nf6 {[%clk 0:02:40.6]} 15. Nxe5 {[%clk 0:02:40.7]}
15... Nxe5 {[%clk 0:02:33.2]} 16. dxe5 {[%clk 0:02:41.6]} 16... Nxg4 {[%clk
0:02:34]} 17. Rxf8+ {[%clk 0:02:31.8]} 17... Qxf8 {[%clk 0:02:34.9]} 18. Nf4
{[%clk 0:02:32.2]} 18... Bxe6 {[%clk 0:01:50.7]} 19. h3 {[%clk 0:01:27.4]} 19...
Nf2 {[%clk 0:01:10.7]} 20. Kxf2 {[%clk 0:01:08.3]} 20... g5 {[%clk 0:01:09.9]}
21. Bxd5 {[%clk 0:01:07.9]} 21... Bxd5 {[%clk 0:01:10.5]} 22. Qxd5+ {[%clk
0:01:08.1]} 22... Kh8 {[%clk 0:01:11.1]} 23. e6 {[%clk 0:00:22.7]} 23... gxf4
{[%clk 0:01:11.2]} 24. Qe5+ {[%clk 0:00:22.5]} 24... Bf6 {[%clk 0:01:11]} 25.
Qe4 {[%clk 0:00:19.1]} 25... Bg5 {[%clk 0:00:39]} 26. Qe5+ {[%clk 0:00:18.9]}
26... Bf6 {[%clk 0:00:39.7]} 27. Qe4 {[%clk 0:00:19.1]} 27... bxc3 {[%clk
0:00:40.4]} 28. bxc3 {[%clk 0:00:19.1]} 28... Bxc3 {[%clk 0:00:35.4]} 29. Rb1
{[%clk 0:00:19.7]} 29... Re8 {[%clk 0:00:35]} 30. Rb7 {[%clk 0:00:18.5]} 30...
Bd4+ {[%clk 0:00:30.5]} 31. Kf3 {[%clk 0:00:18.4]} 31... Qh6 {[%clk 0:00:30.8]}
32. Bxf4 {[%clk 0:00:16.9]} 32... Qxh3+ {[%clk 0:00:30.8]} 33. Ke2 {[%clk
0:00:17.5]} 33... Rxe6 {[%clk 0:00:24.5]} 34. Rxh7+ {[%clk 0:00:17.6]} 34... Kg8
{[%clk 0:00:17.9]} 35. Rxh3 {[%clk 0:00:17]} 35... Rxe4+ {[%clk 0:00:18.6]} 36.
Kf3 {[%clk 0:00:17.6]} 36... Re1 {[%clk 0:00:18.9]} 37. Rh2 {[%clk 0:00:16.8]}
37... a4 {[%clk 0:00:14.2]} 38. Rc2 {[%clk 0:00:16]} 38... Kf7 {[%clk
0:00:13.6]} 39. Bc1 {[%clk 0:00:14.6]} 39... Ke6 {[%clk 0:00:13]} 40. Bd2 {[%clk
0:00:13.4]} 40... Rh1 {[%clk 0:00:12.7]} 41. Ke4 {[%clk 0:00:13.2]} 41... Rh4+
{[%clk 0:00:12.3]} 42. Kd3 {[%clk 0:00:13.1]} 42... Kd5 {[%clk 0:00:13]} 43. Rc1
{[%clk 0:00:07.9]} 43... c4+ {[%clk 0:00:11.9]} 44. Kc2 {[%clk 0:00:08]} 44...
Rh2 {[%clk 0:00:12.5]} 45. Re1 {[%clk 0:00:08.1]} 45... c3 {[%clk 0:00:12.1]}
0-1

[Event "Early-Titled-Tuesday-Blitz-April-02-2024"]
[Site "Chess.com"]
[Date "2024.04.02"]
[Round "8"]
[White "Brahianzevich"]
[Black "djano"]
[Result "0-1"]
[WhiteElo "2541"]
[BlackElo "2667"]
[TimeControl "180+1"]
[EndTime "9:28:58 PDT"]
[Termination "djano won on time"]

1. e4 {[%clk 0:02:56.7]} 1... c5 {[%clk 0:02:59.8]} 2. Nf3 {[%clk 0:02:55.9]}
2... g6 {[%clk 0:03:00.2]} 3. d4 {[%clk 0:02:55.6]} 3... cxd4 {[%clk 0:03:01.1]}
4. Nxd4 {[%clk 0:02:56.3]} 4... Nf6 {[%clk 0:02:58.8]} 5. Nc3 {[%clk 0:02:53.7]}
5... Nc6 {[%clk 0:02:55.7]} 6. Nde2 {[%clk 0:02:53.7]} 6... b5 {[%clk
0:02:48.9]} 7. g3 {[%clk 0:02:53.7]} 7... b4 {[%clk 0:02:48.7]} 8. Nd5 {[%clk
0:02:53.2]} 8... Nxe4 {[%clk 0:02:47.4]} 9. Bg2 {[%clk 0:02:53.6]} 9... Nf6
{[%clk 0:02:40]} 10. Nxf6+ {[%clk 0:02:47.9]} 10... exf6 {[%clk 0:02:40.9]} 11.
O-O {[%clk 0:02:47.4]} 11... Bg7 {[%clk 0:02:39]} 12. Nd4 {[%clk 0:02:44.7]}
12... Bb7 {[%clk 0:02:24.7]} 13. Re1+ {[%clk 0:02:41.1]} 13... Kf8 {[%clk
0:02:22.6]} 14. Nb5 {[%clk 0:02:19.5]} 14... d5 {[%clk 0:02:03.6]} 15. Bf4
{[%clk 0:01:57.2]} 15... Ne5 {[%clk 0:01:53.7]} 16. Qd4 {[%clk 0:01:35.2]} 16...
a5 {[%clk 0:01:43.2]} 17. Rad1 {[%clk 0:01:30.4]} 17... Rc8 {[%clk 0:01:41.7]}
18. Re2 {[%clk 0:00:58.7]} 18... h5 {[%clk 0:01:39.5]} 19. Bxd5 {[%clk
0:00:38.9]} 19... Bxd5 {[%clk 0:01:19.3]} 20. Qxd5 {[%clk 0:00:38.3]} 20... Qxd5
{[%clk 0:01:15.5]} 21. Rxd5 {[%clk 0:00:39.2]} 21... Kg8 {[%clk 0:01:16]} 22.
Na7 {[%clk 0:00:32.2]} 22... Rc7 {[%clk 0:01:11.9]} 23. Rxa5 {[%clk 0:00:29.9]}
23... Kh7 {[%clk 0:01:10.1]} 24. Nb5 {[%clk 0:00:24.5]} 24... Rc5 {[%clk
0:01:09.6]} 25. a4 {[%clk 0:00:11.8]} 25... bxa3 {[%clk 0:01:05.9]} 26. bxa3
{[%clk 0:00:12.7]} 26... Nf3+ {[%clk 0:01:04.7]} 27. Kg2 {[%clk 0:00:12.6]}
27... Nd4 {[%clk 0:01:05.3]} 28. Re7 {[%clk 0:00:11]} 28... Rxb5 {[%clk
0:01:00.1]} 29. Rxb5 {[%clk 0:00:09.4]} 29... Nxb5 {[%clk 0:01:01]} 30. a4
{[%clk 0:00:09.5]} 30... Nc3 {[%clk 0:01:00.5]} 31. Rxf7 {[%clk 0:00:08.3]}
31... Nxa4 {[%clk 0:00:57.5]} 32. Rc7 {[%clk 0:00:06.2]} 32... g5 {[%clk
0:00:53.2]} 33. Bd6 {[%clk 0:00:05.7]} 33... Kg6 {[%clk 0:00:50.1]} 34. h3
{[%clk 0:00:05.2]} 34... Rd8 {[%clk 0:00:47.5]} 35. Be7 {[%clk 0:00:04.7]} 35...
Rd2 {[%clk 0:00:46.2]} 36. c4 {[%clk 0:00:04.5]} 36... Nc3 {[%clk 0:00:42.5]}
37. Kf3 {[%clk 0:00:03.7]} 37... Nd1 {[%clk 0:00:38.8]} 38. Bc5 {[%clk
0:00:02.6]} 38... Rc2 {[%clk 0:00:34.3]} 39. Bb6 {[%clk 0:00:02.1]} 39... Nb2
{[%clk 0:00:33.3]} 40. c5 {[%clk 0:00:01.9]} 40... Nd3 {[%clk 0:00:33.8]} 41. c6
{[%clk 0:00:01.7]} 41... Ne5+ {[%clk 0:00:34.2]} 42. Ke4 {[%clk 0:00:02]} 42...
Rxc6 {[%clk 0:00:33.7]} 43. Rxc6 {[%clk 0:00:02.3]} 43... Nxc6 {[%clk
0:00:34.6]} 44. Kd5 {[%clk 0:00:02.5]} 44... Ne7+ {[%clk 0:00:33.9]} 45. Ke6
{[%clk 0:00:02.5]} 45... Nf5 {[%clk 0:00:34.4]} 46. Bc5 {[%clk 0:00:02.1]} 46...
Nh6 {[%clk 0:00:30]} 47. f3 {[%clk 0:00:02.1]} 47... Nf5 {[%clk 0:00:29.5]} 48.
Bf2 {[%clk 0:00:01.8]} 48... h4 {[%clk 0:00:26.2]} 49. g4 {[%clk 0:00:01.1]}
49... Ng3 {[%clk 0:00:26.7]} 50. Kd5 {[%clk 0:00:01.3]} 50... Ne2 {[%clk
0:00:26.4]} 0-1